[Event "Early-Titled-Tuesday-Blitz-March-12-2024"]
[Site "Chess.com"]
[Date "2024.03.12"]
[Round "11"]
[White "FlemingA"]
[Black "Herman-NY"]
[Result "1/2-1/2"]
[WhiteElo "2431"]
[BlackElo "2534"]
[TimeControl "180+1"]
[EndTime "10:05:24 PDT"]
[Termination "Game drawn - insufficient material"]

1. Nf3 {[%clk 0:02:51.6]} 1... Nf6 {[%clk 0:03:00]} 2. g3 {[%clk 0:02:52.5]}
2... g6 {[%clk 0:03:00.5]} 3. Bg2 {[%clk 0:02:53.1]} 3... Bg7 {[%clk 0:03:01.4]}
4. O-O {[%clk 0:02:54]} 4... O-O {[%clk 0:03:02.2]} 5. d3 {[%clk 0:02:54.9]}
5... d6 {[%clk 0:03:02.2]} 6. e4 {[%clk 0:02:55.6]} 6... c5 {[%clk 0:03:02.1]}
7. Nc3 {[%clk 0:02:54.9]} 7... Nc6 {[%clk 0:03:02.7]} 8. Nd5 {[%clk 0:02:54.7]}
8... Bg4 {[%clk 0:02:19.6]} 9. c3 {[%clk 0:02:53.6]} 9... Nxd5 {[%clk
0:02:06.2]} 10. exd5 {[%clk 0:02:53.2]} 10... Ne5 {[%clk 0:02:06.9]} 11. Bf4
{[%clk 0:02:52.6]} 11... b5 {[%clk 0:01:44.8]} 12. Re1 {[%clk 0:02:46.4]} 12...
a5 {[%clk 0:01:32]} 13. Bxe5 {[%clk 0:02:43.9]} 13... Bxe5 {[%clk 0:01:31.7]}
14. h3 {[%clk 0:02:44.5]} 14... Bxf3 {[%clk 0:01:31.5]} 15. Bxf3 {[%clk
0:02:40]} 15... b4 {[%clk 0:01:26.9]} 16. Qd2 {[%clk 0:02:36.9]} 16... Rb8
{[%clk 0:01:05.1]} 17. c4 {[%clk 0:02:32.3]} 17... a4 {[%clk 0:01:02.1]} 18.
Rad1 {[%clk 0:02:31.2]} 18... b3 {[%clk 0:00:55.3]} 19. a3 {[%clk 0:02:31.4]}
19... Ra8 {[%clk 0:00:32]} 20. Bg2 {[%clk 0:02:29.1]} 20... Qa5 {[%clk
0:00:28.1]} 21. Qe2 {[%clk 0:02:27.4]} 21... Rfb8 {[%clk 0:00:20.7]} 22. f4
{[%clk 0:02:27.4]} 22... Bf6 {[%clk 0:00:19.5]} 23. g4 {[%clk 0:02:26.9]} 23...
Ra7 {[%clk 0:00:17.3]} 24. g5 {[%clk 0:02:19.7]} 24... Bd4+ {[%clk 0:00:17.2]}
25. Kh1 {[%clk 0:02:20.2]} 25... Qd8 {[%clk 0:00:17.9]} 26. Rd2 {[%clk
0:02:18.1]} 26... Qf8 {[%clk 0:00:17.3]} 27. Qg4 {[%clk 0:02:17.8]} 27... Qg7
{[%clk 0:00:17.1]} 28. Ree2 {[%clk 0:02:16.3]} 28... h6 {[%clk 0:00:13.4]} 29.
h4 {[%clk 0:02:16.4]} 29... hxg5 {[%clk 0:00:13]} 30. fxg5 {[%clk 0:02:14.7]}
30... Re8 {[%clk 0:00:10.8]} 31. Be4 {[%clk 0:02:14.8]} 31... Rc7 {[%clk
0:00:07.6]} 32. Rh2 {[%clk 0:02:13.1]} 32... Be5 {[%clk 0:00:07]} 33. Rhg2
{[%clk 0:02:12.4]} 33... Qh7 {[%clk 0:00:07.3]} 34. Kg1 {[%clk 0:02:12.1]} 34...
Kg7 {[%clk 0:00:06.2]} 35. Kf1 {[%clk 0:02:12.1]} 35... Rh8 {[%clk 0:00:06.2]}
36. Rdf2 {[%clk 0:01:48]} 36... Qxh4 {[%clk 0:00:05.7]} 37. Qf3 {[%clk
0:01:48.6]} 37... Rf8 {[%clk 0:00:04.9]} 38. Ke2 {[%clk 0:01:45.1]} 38... Qh5
{[%clk 0:00:04.1]} 39. Qxh5 {[%clk 0:01:40.1]} 39... gxh5 {[%clk 0:00:05]} 40.
g6 {[%clk 0:01:41]} 40... f5 {[%clk 0:00:04.4]} 41. Bxf5 {[%clk 0:01:31.1]}
41... Bxb2 {[%clk 0:00:04.4]} 42. Be4 {[%clk 0:01:29.9]} 42... Rxf2+ {[%clk
0:00:03.7]} 43. Rxf2 {[%clk 0:01:30.8]} 43... Bf6 {[%clk 0:00:03.9]} 44. Kd1
{[%clk 0:01:27.4]} 44... h4 {[%clk 0:00:04.4]} 45. Kc1 {[%clk 0:01:24.6]} 45...
Rc8 {[%clk 0:00:04.9]} 46. Rh2 {[%clk 0:01:20.7]} 46... Rb8 {[%clk 0:00:05.3]}
47. Kb1 {[%clk 0:01:20.5]} 47... b2 {[%clk 0:00:05.9]} 48. d4 {[%clk 0:01:16.9]}
48... cxd4 {[%clk 0:00:04.5]} 49. Rxb2 {[%clk 0:01:17]} 49... Rxb2+ {[%clk
0:00:05.2]} 50. Kxb2 {[%clk 0:01:17.9]} 50... h3 {[%clk 0:00:05.7]} 51. Kc2
{[%clk 0:01:14.4]} 51... h2 {[%clk 0:00:06.3]} 52. Kd3 {[%clk 0:01:14.4]} 52...
Kh6 {[%clk 0:00:06.3]} 53. Ke2 {[%clk 0:01:13.3]} 53... Kg5 {[%clk 0:00:06.9]}
54. Kd3 {[%clk 0:01:09.7]} 54... Kf4 {[%clk 0:00:07.4]} 55. Bh1 {[%clk
0:01:08.4]} 55... Kg3 {[%clk 0:00:07.8]} 56. Ke2 {[%clk 0:00:58.2]} 56... d3+
{[%clk 0:00:08.2]} 57. Kxd3 {[%clk 0:00:58.4]} 57... Kf2 {[%clk 0:00:08.3]} 58.
Ke4 {[%clk 0:00:33.4]} 58... Kg1 {[%clk 0:00:08.1]} 59. Bf3 {[%clk 0:00:34.1]}
59... h1=Q {[%clk 0:00:08.9]} 60. Bxh1 {[%clk 0:00:34.7]} 60... Kxh1 {[%clk
0:00:09.8]} 61. Kf5 {[%clk 0:00:35.1]} 61... Kg2 {[%clk 0:00:09.8]} 62. Ke6
{[%clk 0:00:35.4]} 62... Kf3 {[%clk 0:00:10.2]} 63. c5 {[%clk 0:00:12.1]} 63...
dxc5 {[%clk 0:00:07.7]} 64. d6 {[%clk 0:00:13]} 64... c4 {[%clk 0:00:04.4]} 65.
d7 {[%clk 0:00:12.2]} 65... c3 {[%clk 0:00:05]} 66. d8=Q {[%clk 0:00:12.6]}
66... Ke2 {[%clk 0:00:04.5]} 67. Qc7 {[%clk 0:00:04.9]} 67... Kd2 {[%clk
0:00:04.4]} 68. Qh2+ {[%clk 0:00:05.3]} 68... Kc1 {[%clk 0:00:04.5]} 69. Qg1+
{[%clk 0:00:05.8]} 69... Kb2 {[%clk 0:00:04.8]} 70. Qb6+ {[%clk 0:00:05.6]}
70... Kxa3 {[%clk 0:00:04.2]} 71. Qc5+ {[%clk 0:00:05.4]} 71... Kb2 {[%clk
0:00:04.4]} 72. Qb5+ {[%clk 0:00:05.5]} 72... Kc1 {[%clk 0:00:03.7]} 73. Qxa4
{[%clk 0:00:05.3]} 73... c2 {[%clk 0:00:04.3]} 74. Qb3 {[%clk 0:00:02.5]} 74...
Kd2 {[%clk 0:00:04.7]} 75. Qb4+ {[%clk 0:00:02.7]} 75... Bc3 {[%clk 0:00:04.4]}
76. Qf4+ {[%clk 0:00:02.4]} 76... Kd1 {[%clk 0:00:05]} 77. Qf3+ {[%clk
0:00:02.6]} 77... Kd2 {[%clk 0:00:04.6]} 78. Qf2+ {[%clk 0:00:03.2]} 78... Kd1
{[%clk 0:00:04.7]} 79. Qf1+ {[%clk 0:00:03.5]} 79... Be1 {[%clk 0:00:05]} 80.
Qd3+ {[%clk 0:00:04.2]} 80... Bd2 {[%clk 0:00:05.4]} 81. Qc4 {[%clk 0:00:04]}
81... Bh6 {[%clk 0:00:04]} 82. Kxe7 {[%clk 0:00:02.9]} 82... c1=Q {[%clk
0:00:03.7]} 83. Qxc1+ {[%clk 0:00:03.4]} 83... Kxc1 {[%clk 0:00:04.6]} 84. Kf7
{[%clk 0:00:04]} 84... Kd2 {[%clk 0:00:04.6]} 85. Kg8 {[%clk 0:00:03.9]} 85...
Ke3 {[%clk 0:00:05.1]} 86. Kh7 {[%clk 0:00:04.6]} 86... Bf8 {[%clk 0:00:05.4]}
87. Kg8 {[%clk 0:00:05.2]} 87... Bh6 {[%clk 0:00:05.7]} 88. Kh7 {[%clk 0:00:06]}
88... Bf8 {[%clk 0:00:06]} 89. g7 {[%clk 0:00:06.9]} 89... Bxg7 {[%clk
0:00:06.2]} 1/2-1/2

[Event "Early-Titled-Tuesday-Blitz-March-12-2024"]
[Site "Chess.com"]
[Date "2024.03.12"]
[Round "11"]
[White "viktorskliarov"]
[Black "Viktoker"]
[Result "1/2-1/2"]
[WhiteElo "2587"]
[BlackElo "2501"]
[TimeControl "180+1"]
[EndTime "10:05:29 PDT"]
[Termination "Game drawn - insufficient material"]

1. e4 {[%clk 0:03:00.9]} 1... c5 {[%clk 0:02:36.8]} 2. Nf3 {[%clk 0:03:00.8]}
2... d6 {[%clk 0:02:36.7]} 3. d4 {[%clk 0:03:00.8]} 3... cxd4 {[%clk 0:02:37.6]}
4. Qxd4 {[%clk 0:03:01.4]} 4... Nc6 {[%clk 0:02:36.2]} 5. Bb5 {[%clk 0:03:01.2]}
5... a6 {[%clk 0:02:36.8]} 6. Bxc6+ {[%clk 0:03:00.9]} 6... bxc6 {[%clk
0:02:37.7]} 7. c4 {[%clk 0:03:00.1]} 7... e5 {[%clk 0:02:38.1]} 8. Qd3 {[%clk
0:02:59.9]} 8... Be6 {[%clk 0:02:38]} 9. Nc3 {[%clk 0:02:54.6]} 9... Ne7 {[%clk
0:02:38.1]} 10. c5 {[%clk 0:02:50.6]} 10... Ng6 {[%clk 0:02:12.7]} 11. cxd6
{[%clk 0:02:46.5]} 11... Qxd6 {[%clk 0:02:08.7]} 12. Qe2 {[%clk 0:02:43.1]}
12... Qc7 {[%clk 0:02:04.2]} 13. Ng5 {[%clk 0:02:29]} 13... Bc8 {[%clk
0:01:50.8]} 14. O-O {[%clk 0:02:25.9]} 14... Be7 {[%clk 0:01:45.7]} 15. Be3
{[%clk 0:02:18.4]} 15... O-O {[%clk 0:01:43.5]} 16. Qh5 {[%clk 0:02:02.4]} 16...
Bxg5 {[%clk 0:01:29.5]} 17. Qxg5 {[%clk 0:01:56.5]} 17... Be6 {[%clk 0:01:27.5]}
18. Na4 {[%clk 0:01:52.7]} 18... Rab8 {[%clk 0:01:24.3]} 19. b3 {[%clk
0:01:52.2]} 19... f6 {[%clk 0:01:22.3]} 20. Qg3 {[%clk 0:01:50.4]} 20... Bf7
{[%clk 0:01:20.3]} 21. Nc5 {[%clk 0:01:45.1]} 21... Ra8 {[%clk 0:01:12.5]} 22.
h4 {[%clk 0:01:38]} 22... Nf4 {[%clk 0:01:09]} 23. Bxf4 {[%clk 0:01:29]} 23...
exf4 {[%clk 0:01:09.9]} 24. Qc3 {[%clk 0:01:28.9]} 24... Rfe8 {[%clk 0:01:06.7]}
25. Rfd1 {[%clk 0:01:11.1]} 25... Qe5 {[%clk 0:00:54.1]} 26. Qxe5 {[%clk
0:01:07.5]} 26... Rxe5 {[%clk 0:00:53.4]} 27. Rac1 {[%clk 0:01:07.7]} 27... f3
{[%clk 0:00:53.2]} 28. gxf3 {[%clk 0:00:52.8]} 28... Rh5 {[%clk 0:00:53.1]} 29.
Kg2 {[%clk 0:00:36.2]} 29... Rxh4 {[%clk 0:00:52.9]} 30. Kg3 {[%clk 0:00:36.3]}
30... Rh6 {[%clk 0:00:46.5]} 31. Rd7 {[%clk 0:00:30.6]} 31... Bh5 {[%clk
0:00:40.2]} 32. Ne6 {[%clk 0:00:24]} 32... Rg6+ {[%clk 0:00:37]} 33. Kf4 {[%clk
0:00:24.3]} 33... Rg2 {[%clk 0:00:34.4]} 34. Ke3 {[%clk 0:00:10.7]} 34... Bf7
{[%clk 0:00:34.3]} 35. Nf4 {[%clk 0:00:07.1]} 35... Rg5 {[%clk 0:00:33.3]} 36.
Rxc6 {[%clk 0:00:06.9]} 36... Be8 {[%clk 0:00:30.3]} 37. Rcc7 {[%clk 0:00:06.5]}
37... Bxd7 {[%clk 0:00:30.7]} 38. Rxd7 {[%clk 0:00:07.4]} 38... a5 {[%clk
0:00:30.5]} 39. Ne6 {[%clk 0:00:07.6]} 39... Rg1 {[%clk 0:00:30.1]} 40. Kf4
{[%clk 0:00:07.6]} 40... h5 {[%clk 0:00:30.2]} 41. Nd4 {[%clk 0:00:04.6]} 41...
h4 {[%clk 0:00:29.9]} 42. Ne2 {[%clk 0:00:05]} 42... Rg2 {[%clk 0:00:28.7]} 43.
Ke3 {[%clk 0:00:04.3]} 43... h3 {[%clk 0:00:28.1]} 44. Rd1 {[%clk 0:00:04.4]}
44... a4 {[%clk 0:00:27]} 45. Rh1 {[%clk 0:00:04.4]} 45... h2 {[%clk 0:00:26.2]}
46. Nf4 {[%clk 0:00:04.1]} 46... Rg5 {[%clk 0:00:25.2]} 47. bxa4 {[%clk
0:00:03.4]} 47... Rxa4 {[%clk 0:00:25.1]} 48. Rxh2 {[%clk 0:00:04]} 48... Ra3+
{[%clk 0:00:24.7]} 49. Nd3 {[%clk 0:00:04.4]} 49... Rga5 {[%clk 0:00:22.5]} 50.
Kd4 {[%clk 0:00:02.9]} 50... R5a4+ {[%clk 0:00:22]} 51. Ke3 {[%clk 0:00:03.3]}
51... Ra8 {[%clk 0:00:22.3]} 52. Ke2 {[%clk 0:00:02.8]} 52... Rxa2+ {[%clk
0:00:22.1]} 53. Kf1 {[%clk 0:00:03.5]} 53... Ra1+ {[%clk 0:00:20.9]} 54. Kg2
{[%clk 0:00:03.6]} 54... R8a2 {[%clk 0:00:20.4]} 55. Nf4 {[%clk 0:00:03.8]}
55... Ra7 {[%clk 0:00:19.9]} 56. Nd5 {[%clk 0:00:03.8]} 56... R1a2 {[%clk
0:00:19.8]} 57. Kg3 {[%clk 0:00:04.4]} 57... Rb2 {[%clk 0:00:19.8]} 58. Rh1
{[%clk 0:00:04.9]} 58... Rb3 {[%clk 0:00:20.1]} 59. Rf1 {[%clk 0:00:05.2]} 59...
Raa3 {[%clk 0:00:20.2]} 60. Ne3 {[%clk 0:00:05.9]} 60... g6 {[%clk 0:00:20.2]}
61. Kf4 {[%clk 0:00:06.2]} 61... Kf7 {[%clk 0:00:20.5]} 62. Rc1 {[%clk
0:00:06.4]} 62... Rb7 {[%clk 0:00:19.4]} 63. Rc5 {[%clk 0:00:06.2]} 63... Re7
{[%clk 0:00:17.1]} 64. Kg3 {[%clk 0:00:06.4]} 64... Kg7 {[%clk 0:00:15.8]} 65.
Kg2 {[%clk 0:00:04.9]} 65... g5 {[%clk 0:00:15.7]} 66. Rc6 {[%clk 0:00:05.2]}
66... Kg6 {[%clk 0:00:15.4]} 67. Nf5 {[%clk 0:00:05.5]} 67... Rh7 {[%clk
0:00:14.5]} 68. Rc8 {[%clk 0:00:05.4]} 68... Ra1 {[%clk 0:00:13.9]} 69. Rg8+
{[%clk 0:00:05.5]} 69... Kf7 {[%clk 0:00:14.5]} 70. Rb8 {[%clk 0:00:06.2]} 70...
Rhh1 {[%clk 0:00:14.6]} 71. Rb7+ {[%clk 0:00:05]} 71... Ke8 {[%clk 0:00:14]} 72.
f4 {[%clk 0:00:05.1]} 72... gxf4 {[%clk 0:00:13.7]} 73. Kf3 {[%clk 0:00:05.8]}
73... Rhf1 {[%clk 0:00:13.6]} 74. Nd6+ {[%clk 0:00:04.9]} 74... Kd8 {[%clk
0:00:12.7]} 75. Nf7+ {[%clk 0:00:05.2]} 75... Kc8 {[%clk 0:00:13.2]} 76. Nd6+
{[%clk 0:00:06]} 76... Kd8 {[%clk 0:00:13.9]} 77. Nf7+ {[%clk 0:00:06.7]} 77...
Ke8 {[%clk 0:00:14.4]} 78. Nd6+ {[%clk 0:00:07.3]} 78... Kf8 {[%clk 0:00:14.9]}
79. Rf7+ {[%clk 0:00:07.6]} 79... Kg8 {[%clk 0:00:15.4]} 80. Rxf6 {[%clk
0:00:08.3]} 80... Ra3+ {[%clk 0:00:15.2]} 81. Kxf4 {[%clk 0:00:08]} 81... Rxf2+
{[%clk 0:00:15.6]} 82. Ke5 {[%clk 0:00:08.5]} 82... Ra5+ {[%clk 0:00:14.7]} 83.
Ke6 {[%clk 0:00:08.7]} 83... Rxf6+ {[%clk 0:00:14.3]} 84. Kxf6 {[%clk
0:00:09.2]} 84... Kf8 {[%clk 0:00:13.7]} 85. Ke6 {[%clk 0:00:09.5]} 85... Rh5
{[%clk 0:00:13.1]} 86. e5 {[%clk 0:00:09.3]} 86... Rxe5+ {[%clk 0:00:09.1]} 87.
Kxe5 {[%clk 0:00:09.7]} 1/2-1/2